bitfinex/quotes_SOLUSD_20250601
["timestamp","ask_amount","ask_price","bid_price","bid_amount"]
[1748738222518,18.19480184,156.27,156.22,10.51800184]
[1748738222745,18.19480184,156.27,156.21,22.40573585]
[1748738222746,7.6768,156.27,156.23,10.51800184]
[1748738223133,7.6768,156.27,156.24,6.40040962]
[1748738224741,7.6768,156.27,156.24,16.91841146]
[1748738226650,10.51800184,156.29,156.24,16.91841146]
[1748738229955,12.04180184,156.3,156.25,10.51800184]
[1748738230645,10.51800184,156.29,156.24,16.91841146]
[1748738235364,10.51800184,156.29,156.25,10.51800184]
[1748738235570,21.07800184,156.31,156.26,10.51800184]
[1748738236271,10.51800184,156.3,156.25,10.51800184]
[1748738236973,10.51800184,156.3,156.26,6.39959042]
[1748738237364,32.39665814,156.34,156.26,16.91759226]
[1748738237560,10.51800184,156.31,156.26,16.91759226]
[1748738237749,32.39665814,156.34,156.26,6.39959042]
[1748738237750,10.51800184,156.3,156.26,6.39959042]
[1748738239063,10.51800184,156.3,156.26,10.51800184]
[1748738239757,10.51800184,156.27,156.24,6.40024862]
[1748738240662,10.51800184,156.28,156.24,6.40024862]
[1748738241042,10.51800184,156.29,156.24,16.91825046]
[1748738241452,10.51800184,156.28,156.24,6.40024862]
[1748738241950,10.51800184,156.29,156.24,16.91825046]
[1748738245294,46.23764164,156.31,156.24,16.91825046]
[1748738245470,10.51800184,156.29,156.24,16.91825046]
[1748738246497,10.54,156.33,156.26,10.51800184]
[1748738246791,10.51800184,156.32,156.27,10.51800184]
[1748738246966,10.51800184,156.31,156.26,10.51800184]
[1748738247167,10.51800184,156.28,156.24,6.40024862]
[1748738256687,10.51800184,156.28,156.22,6.40122903]
[1748738256871,10.51800184,156.28,156.23,10.51800184]
[1748738258604,10.51800184,156.28,156.24,6.40040962]
[1748738260229,12.75438909,156.3,156.24,6.40040962]
[1748738260417,10.51800184,156.28,156.24,6.40040962]
[1748738260725,6.3563,156.3,156.25,10.51800184]
[1748738260900,16.87430184,156.3,156.25,10.51800184]
[1748738262227,16.87430184,156.3,156.26,6.39959042]
[1748738262828,10.51800184,156.31,156.26,32.91656832]
[1748738263028,10.51800184,156.32,156.27,10.51800184]
[1748738263953,10.51800184,156.32,156.28,6.39877143]
[1748738267037,10.51800184,156.31,156.28,6.39877143]
[1748738270950,10.51800184,156.32,156.28,6.39877143]
[1748738272860,6.72288707,156.32,156.27,6.72288707]
[1748738273029,6.72288707,156.32,156.26,15.99897606]
[1748738273030,6.72288707,156.31,156.26,22.72186313]
[1748738273632,6.72288707,156.31,156.26,15.99897606]
[1748738273935,6.72288707,156.32,156.27,6.72288707]
[1748738274859,6.72288707,156.32,156.28,6.39877143]
[1748738275763,6.72288707,156.32,156.26,15.99897606]
[1748738275764,6.72288707,156.31,156.27,6.3991809]
[1748738278762,6.72288707,156.31,156.26,15.99897606]
[1748738279064,6.72288707,156.31,156.26,22.72186313]
[1748738280570,6.72288707,156.28,156.25,6.4]
[1748738280741,6.72288707,156.29,156.24,6.40040962]
[1748738281067,6.72288707,156.29,156.24,13.12329669]
[1748738283766,6.72288707,156.3,156.24,13.12329669]
[1748738284265,6.72288707,156.29,156.24,13.12329669]
[1748738285573,6.72288707,156.3,156.24,13.12329669]
[1748738286068,6.72288707,156.3,156.24,29.12432075]
[1748738286243,6.72288707,156.31,156.26,6.72288707]
[1748738287444,1.5103,156.32,156.25,6.72288707]
[1748738287644,6.72288707,156.3,156.25,6.72288707]
[1748738288049,6.72288707,156.3,156.26,6.39959042]
[1748738289178,6.72288707,156.31,156.26,13.12247749]
[1748738289778,6.72288707,156.32,156.27,6.72288707]
[1748738290491,6.72288707,156.32,156.28,6.39877143]
[1748738292178,6.72288707,156.31,156.28,6.39877143]
[1748738292371,6.72288707,156.31,156.27,6.3991809]
[1748738292562,6.72288707,156.3,156.27,6.3991809]
[1748738294572,6.72288707,156.29,156.24,6.72288707]
[1748738294778,6.72288707,156.28,156.24,6.40040962]
[1748738294975,6.3979583,156.3,156.24,6.40040962]
[1748738294976,6.72288707,156.27,156.24,6.40040962]
[1748738295270,6.72288707,156.28,156.24,6.40040962]
[1748738295457,25.37253593,156.26,156.17,1.5283]
[1748738295658,25.37253593,156.26,156.13,3.2385515]
[1748738295659,6.72288707,156.19,156.13,13.12780604]
[1748738295855,6.72288707,156.18,156.14,26.0]
[1748738296170,6.72288707,156.18,156.13,13.12780604]
[1748738296171,6.72288707,156.16,156.13,6.40491897]
[1748738296371,6.72288707,156.17,156.12,13.1282163]
[1748738296747,10.52377181,156.17,156.12,32.94242412]
[1748738297787,10.52377181,156.17,156.12,16.92910104]
[1748738297969,10.52377181,156.16,156.12,6.40532923]
[1748738301796,10.52377181,156.15,156.12,6.40532923]
[1748738304085,10.52377181,156.16,156.12,6.40532923]
[1748738305197,10.52377181,156.18,156.14,10.52377181]
[1748738305402,10.52377181,156.19,156.14,10.52377181]
[1748738305574,10.52377181,156.19,156.12,6.40532923]
[1748738305575,10.52377181,156.2,156.15,10.52377181]
[1748738305769,10.52377181,156.2,156.16,6.40368852]
[1748738307893,10.52377181,156.2,156.16,10.52377181]
[1748738308270,10.52377181,156.21,156.16,10.52377181]
[1748738309096,10.52377181,156.21,156.17,6.40327847]
[1748738309992,29.17342067,156.24,156.18,10.52377181]
[1748738309993,10.52377181,156.22,156.18,10.52377181]
[1748738310718,18.64964886,156.24,156.17,6.40327847]
[1748738310719,25.19265797,156.23,156.17,6.40327847]
[1748738311002,10.52377181,156.2,156.16,6.40368852]
[1748738314385,25.19265797,156.23,156.16,6.40368852]
[1748738314597,10.52377181,156.2,156.16,6.40368852]
[1748738316511,10.52377181,156.19,156.14,6.40450877]
[1748738316683,10.52377181,156.17,156.14,6.40450877]
[1748738317873,10.52377181,156.18,156.14,6.40450877]
[1748738319308,7.7468,156.2,156.15,10.52377181]
[1748738319604,18.27057181,156.2,156.15,10.52377181]
[1748738319795,18.27057181,156.2,156.16,6.40368852]
[1748738319980,10.52377181,156.19,156.16,6.40368852]
[1748738320576,10.52377181,156.17,156.13,10.52377181]
[1748738320789,10.52377181,156.17,156.12,36.52377181]
[1748738321795,10.52377181,156.17,156.13,6.40491897]
[1748738328606,10.52377181,156.16,156.13,6.40491897]
[1748738330516,10.52377181,156.17,156.13,6.40491897]
[1748738331595,10.52377181,156.16,156.13,6.40491897]
[1748738338198,10.52377181,156.18,156.14,10.52377181]
[1748738338417,10.5,156.21,156.15,10.52377181]
[1748738338719,10.52377181,156.19,156.15,10.52377181]
[1748738339225,10.5,156.21,156.15,10.52377181]
[1748738339397,10.52377181,156.19,156.15,10.52377181]
[1748738340110,10.52377181,156.19,156.16,6.40368852]
[1748738341803,10.52377181,156.17,156.16,6.40368852]
[1748738343022,10.52377181,156.18,156.14,6.40450877]
[1748738343327,10.52377181,156.19,156.14,32.93955251]
[1748738345012,10.52377181,156.18,156.14,32.93955251]
[1748738345731,10.52377181,156.18,156.14,6.40450877]
[1748738346028,10.52377181,156.17,156.14,6.40450877]
[1748738346330,10.52377181,156.15,156.14,6.40450877]
[1748738346743,10.52377181,156.15,156.12,26.49329816]
[1748738346744,10.52377181,156.16,156.13,6.40491897]
[1748738349746,10.52377181,156.14,156.1,115.6]
[1748738349906,10.52377181,156.13,156.11,6.40573954]
[1748738353535,10.52377181,156.11,156.09,6.40656031]
[1748738355013,10.52377181,156.11,156.07,10.52377181]
[1748738355014,10.52377181,156.11,156.08,6.40697078]
[1748738357220,10.52377181,156.12,156.08,6.40697078]
[1748738358633,10.52377181,156.11,156.08,6.40697078]
[1748738359715,10.52377181,156.12,156.08,6.40697078]
[1748738362526,14.37942945,156.16,156.08,6.40697078]
[1748738362527,10.52377181,156.11,156.08,6.40697078]
[1748738363617,10.52377181,156.11,156.07,6.4073813]
[1748738363941,10.52377181,156.09,156.07,6.4073813]
[1748738364143,10.52377181,156.08,156.07,6.4073813]
[1748738364845,10.52377181,156.09,156.07,6.4073813]
[1748738365422,10.52377181,156.09,156.05,6.40820249]
[1748738365724,10.52377181,156.12,156.07,10.52377181]
[1748738365925,10.52377181,156.13,156.08,10.52377181]
[1748738367554,10.52377181,156.13,156.09,6.40656031]
[1748738367755,10.52377181,156.15,156.11,10.52377181]
[1748738367960,10.52377181,156.16,156.11,10.52377181]
[1748738368355,11.60541281,156.17,156.13,10.52377181]
[1748738368530,29.10917159,156.19,156.14,10.52377181]
[1748738368726,18.62917159,156.19,156.14,10.52377181]
[1748738369055,8.10539978,156.19,156.15,10.52377181]
[1748738369533,8.10539978,156.19,156.17,16.92705028]
[1748738371040,10.52377181,156.21,156.17,16.92705028]
[1748738372251,10.52377181,156.21,156.17,32.93524647]
[1748738373344,10.52377181,156.21,156.17,22.41147466]
[1748738373553,1.5782,156.22,156.17,22.41147466]
[1748738373736,10.52377181,156.21,156.17,22.41147466]
[1748738374753,10.52377181,156.19,156.17,6.40327847]
[1748738376057,10.52377181,156.19,156.16,6.40368852]
[1748738377047,10.52377181,156.17,156.14,6.40450877]
[1748738377553,10.52377181,156.18,156.14,6.40450877]
[1748738377753,10.52377181,156.19,156.14,16.92828058]
[1748738378556,10.52377181,156.19,156.15,10.52377181]
[1748738378766,10.52377181,156.19,156.16,6.40368852]
[1748738379372,10.52377181,156.2,156.16,6.40368852]
[1748738379764,20.22784886,156.22,156.16,6.40368852]
[1748738379963,10.52377181,156.21,156.17,10.52377181]
[1748738380668,10.52377181,156.22,156.17,10.52377181]
[1748738380871,10.52377181,156.22,156.18,6.40286848]
[1748738381070,10.52377181,156.21,156.18,6.40286848]
[1748738383575,10.52377181,156.21,156.17,6.40327847]
[1748738384076,10.52377181,156.19,156.17,6.40327847]
[1748738385085,10.52377181,156.19,156.15,6.40409862]
[1748738385800,18.79181043,156.22,156.15,16.92787043]
[1748738385949,10.52377181,156.2,156.15,16.92787043]
[1748738387352,10.52377181,156.19,156.15,6.40409862]
[1748738388583,10.52377181,156.2,156.15,16.92787043]
[1748738389781,10.52377181,156.19,156.15,6.40409862]
[1748738391078,10.52377181,156.2,156.15,16.92787043]
[1748738391482,10.52377181,156.19,156.14,16.92828058]
[1748738392688,10.52377181,156.19,156.14,32.93955251]
[1748738392887,10.52377181,156.2,156.15,10.52377181]
[1748738393596,10.52377181,156.2,156.16,6.40368852]
[1748738395571,10.52377181,156.22,156.17,10.52377181]
[1748738395871,10.52377181,156.21,156.16,32.93668164]
[1748738400583,10.52377181,156.19,156.15,6.40409862]
[1748738400834,10.52377181,156.2,156.15,16.92787043]
[1748738401099,10.52377181,156.2,156.15,32.93811698]
[1748738401976,6.232,156.23,156.15,32.93811698]
[1748738402185,10.52377181,156.2,156.15,32.93811698]
[1748738404400,10.52377181,156.17,156.15,6.40409862]
[1748738404584,10.52377181,156.16,156.15,6.40409862]
[1748738404786,10.52377181,156.16,156.13,6.40491897]
[1748738405499,10.52377181,156.17,156.13,6.40491897]
[1748738405700,10.52377181,156.17,156.13,32.94098822]
[1748738405876,10.52377181,156.18,156.13,32.94098822]
[1748738406284,10.52377181,156.19,156.15,10.52377181]
[1748738406621,10.52377181,156.2,156.16,10.52377181]
[1748738406787,10.52377181,156.2,156.17,6.40327847]
[1748738408414,10.52377181,156.2,156.17,22.41147466]
[1748738408595,10.52377181,156.21,156.17,22.41147466]
[1748738408793,6.232,156.23,156.17,32.93524647]
[1748738409098,6.232,156.23,156.18,10.52377181]
[1748738409303,10.52377181,156.21,156.17,32.93524647]
[1748738410401,10.52377181,156.21,156.17,6.40327847]
[1748738411610,10.52377181,156.22,156.17,16.92705028]
[1748738412322,16.75577181,156.23,156.18,10.52377181]
[1748738414327,16.75577181,156.23,156.19,6.40245854]
[1748738414531,10.52377181,156.23,156.19,22.4086049]
[1748738414729,10.52377181,156.24,156.19,32.93237671]
[1748738419435,10.52377181,156.23,156.19,22.4086049]
[1748738424739,10.52377181,156.22,156.19,22.4086049]
[1748738429937,10.52377181,156.23,156.19,22.4086049]
[1748738431540,10.52377181,156.22,156.19,22.4086049]
[1748738433026,10.52377181,156.23,156.19,22.4086049]
[1748738436943,7.7341,156.29,156.22,10.52377181]
[1748738437248,10.52377181,156.27,156.22,10.52377181]
[1748738438243,10.52377181,156.27,156.23,22.40286756]
[1748738438617,10.52377181,156.27,156.23,32.92663937]
[1748738442322,10.52377181,156.28,156.23,32.92663937]
[1748738444140,7.7341,156.29,156.23,32.92663937]
[1748738444141,10.52377181,156.27,156.23,16.92459111]
[1748738445120,10.52377181,156.28,156.23,16.92459111]
[1748738446241,10.52377181,156.27,156.23,16.92459111]
[1748738452760,6.72569548,156.27,156.23,13.12651478]
[1748738453461,6.72569548,156.28,156.23,13.12651478]
[1748738458861,7.7341,156.29,156.22,6.40122903]
[1748738458862,14.13250198,156.29,156.22,6.40122903]
[1748738459040,6.72569548,156.27,156.23,6.72569548]
[1748738460465,6.72569548,156.27,156.24,6.40040962]
[1748738460889,6.72569548,156.25,156.19,6.40245854]
[1748738461037,6.72569548,156.23,156.19,32.40245854]
[1748738462668,10.51505351,156.23,156.19,32.40245854]
[1748738462970,10.51505351,156.23,156.19,42.91751205]
[1748738463962,10.51505351,156.23,156.18,6.40271795]
[1748738463963,10.51505351,156.21,156.18,6.40271795]
[1748738464165,10.51505351,156.2,156.18,6.40271795]
[1748738464652,10.51505351,156.21,156.18,6.40271795]
[1748738465573,10.51505351,156.2,156.17,42.78317045]
[1748738466270,10.51505351,156.2,156.17,16.78317045]
[1748738470958,6.68432314,156.25,156.17,16.78317045]
[1748738471165,10.51505351,156.21,156.17,16.78317045]
[1748738471960,10.51505351,156.23,156.18,10.51505351]
[1748738472568,10.51505351,156.23,156.19,10.51505351]
[1748738473460,18.42265351,156.26,156.21,10.51505351]
[1748738473848,10.51505351,156.25,156.21,10.51505351]
[1748738475168,10.51505351,156.25,156.22,6.40122903]
[1748738475374,18.42265351,156.26,156.22,6.40122903]
[1748738477657,18.42265351,156.26,156.22,16.91628254]
[1748738478571,18.42265351,156.26,156.22,32.91935512]
[1748738479569,10.51505351,156.27,156.22,32.91935512]
[1748738479878,10.51505351,156.27,156.22,26.51812609]
[1748738480757,10.51505351,156.27,156.22,32.91935512]
[1748738482372,10.51505351,156.27,156.22,26.51812609]
[1748738483584,10.51505351,156.27,156.22,32.91935512]
[1748738484875,6.72666919,156.27,156.22,29.1309708]
[1748738487661,10.52216157,156.3,156.22,29.1309708]
[1748738487854,6.72666919,156.27,156.23,6.72666919]
[1748738488751,6.72666919,156.27,156.22,16.00307258]
[1748738488981,6.72666919,156.27,156.23,6.72666919]
[1748738489685,6.72666919,156.27,156.22,16.00307258]
[1748738489870,6.72666919,156.27,156.22,22.72974177]
[1748738490580,10.52216157,156.3,156.22,22.72974177]
[1748738490777,6.72666919,156.27,156.22,22.72974177]
[1748738491982,6.72666919,156.27,156.22,29.1309708]
[1748738493094,6.72666919,156.26,156.22,22.40430161]
[1748738493267,6.72666919,156.26,156.22,29.1309708]
[1748738494167,6.72666919,156.26,156.22,16.00307258]
[1748738494389,6.72666919,156.25,156.21,13.128308]
[1748738496394,6.39836201,156.29,156.21,13.128308]
[1748738496577,6.72666919,156.26,156.21,13.128308]
[1748738500774,6.39836201,156.29,156.21,13.128308]
[1748738501085,6.72666919,156.26,156.21,29.13240504]
[1748738501284,6.72666919,156.26,156.22,6.72666919]
[1748738501482,6.72666919,156.28,156.23,6.72666919]
[1748738501697,6.72666919,156.29,156.24,6.72666919]
[1748738501999,6.72666919,156.29,156.25,6.72666919]
[1748738503204,6.72666919,156.3,156.26,6.39959042]
[1748738503399,10.24744165,156.32,156.26,6.39959042]
[1748738503400,6.72666919,156.29,156.26,6.39959042]
[1748738505579,6.72666919,156.29,156.25,6.4]
[1748738505930,6.72666919,156.29,156.25,13.12666919]
[1748738506281,6.72666919,156.28,156.25,6.4]
[1748738506484,6.72666919,156.27,156.25,6.4]
[1748738507509,6.72666919,156.27,156.24,32.40040962]
[1748738510511,6.72666919,156.26,156.21,6.40163881]
[1748738510695,6.72666919,156.24,156.21,6.40163881]
[1748738511009,6.72666919,156.23,156.2,16.76187606]
[1748738511187,6.72666919,156.23,156.2,6.40187606]
[1748738511392,6.72666919,156.22,156.2,6.40187606]
[1748738511605,6.72666919,156.22,156.18,6.40286848]
[1748738512115,6.72666919,156.2,156.18,6.40286848]
[1748738512490,6.72666919,156.2,156.17,6.40327847]
[1748738512688,10.51899336,156.2,156.17,6.40327847]
[1748738513109,6.40014172,156.25,156.17,22.41147466]
[1748738513398,10.51899336,156.21,156.17,32.93046802]
[1748738514586,6.40014172,156.25,156.17,32.93046802]
[1748738514794,10.51899336,156.21,156.17,32.93046802]
[1748738521121,10.51899336,156.24,156.19,10.51899336]
[1748738521416,10.51899336,156.21,156.17,22.41147466]
[1748738521594,10.51899336,156.2,156.17,6.40327847]
[1748738522225,10.51899336,156.18,156.13,6.40491897]
[1748738522527,10.51899336,156.16,156.13,6.40491897]
[1748738523029,10.51899336,156.17,156.13,6.40491897]
[1748738523396,10.51899336,156.18,156.13,16.92391233]
[1748738523604,10.51899336,156.19,156.14,10.51899336]
[1748738524730,10.51899336,156.19,156.15,6.40409862]
[1748738526937,10.51899336,156.21,156.16,10.51899336]
[1748738527141,10.51899336,156.2,156.16,10.51899336]
[1748738527324,10.51899336,156.2,156.15,10.51899336]
[1748738527636,10.51899336,156.19,156.15,10.51899336]
[1748738528423,10.51899336,156.19,156.13,22.41721641]
[1748738528623,10.51899336,156.19,156.15,10.51899336]
[1748738529634,10.51899336,156.19,156.16,6.40368852]
[1748738530746,0.14216157,156.23,156.16,6.40368852]
[1748738531034,10.51899336,156.2,156.16,6.40368852]
[1748738532447,10.51899336,156.21,156.16,16.92268188]
[1748738532746,6.73196941,156.21,156.16,13.13565793]
[1748738532948,6.73196941,156.21,156.16,29.14487924]
[1748738534156,6.73196941,156.2,156.16,22.41290983]
[1748738535663,6.73196941,156.2,156.16,29.14487924]
[1748738536644,0.14216157,156.23,156.16,29.14487924]
[1748738536850,6.73196941,156.2,156.16,29.14487924]
[1748738537652,6.73196941,156.2,156.16,22.41290983]
[1748738537960,6.73196941,156.18,156.16,6.40368852]
[1748738538855,6.54309324,156.23,156.15,6.40409862]
[1748738538856,6.73196941,156.19,156.15,6.40409862]
[1748738547262,6.73196941,156.19,156.15,13.13606803]
[1748738549665,6.73196941,156.2,156.15,13.13606803]
[1748738550644,6.73196941,156.21,156.16,6.73196941]
[1748738551952,6.73196941,156.21,156.17,6.40327847]
[1748738556568,6.73196941,156.21,156.17,22.41147466]
[1748738556771,6.73196941,156.21,156.17,29.14344407]
[1748738565881,6.73196941,156.21,156.17,22.41147466]
[1748738566052,6.73196941,156.2,156.17,22.41147466]
[1748738568678,33.3283813,156.24,156.17,22.41147466]
[1748738568679,6.73196941,156.21,156.17,22.41147466]
[1748738569657,189.51833638,156.25,156.17,22.41147466]
[1748738569959,6.73196941,156.21,156.17,22.41147466]
[1748738571255,156.976,156.25,156.19,6.73196941]
[1748738571467,6.73196941,156.24,156.18,6.73196941]
[1748738571673,6.73196941,156.24,156.19,6.73196941]
[1748738572560,6.73196941,156.24,156.2,6.40204865]
[1748738574380,6.73196941,156.24,156.2,22.40717028]
[1748738574573,7.976,156.25,156.2,29.13913969]
[1748738574763,6.73196941,156.24,156.2,29.13913969]
[1748738578788,13.15506941,156.25,156.2,29.13913969]
[1748738580371,31.65588258,156.26,156.21,6.73196941]
[1748738580691,38.38785199,156.26,156.21,6.73196941]
[1748738581591,6.73196941,156.25,156.2,29.13913969]
[1748738582088,6.73196941,156.21,156.18,6.40286848]
[1748738582289,7.9908,156.24,156.18,6.40286848]
[1748738582290,6.73196941,156.2,156.18,6.40286848]
[1748738582495,6.73196941,156.2,156.17,22.41056091]
[1748738586095,6.73196941,156.19,156.17,6.40327847]
[1748738586296,6.73196941,156.18,156.17,6.40327847]
[1748738588070,6.73196941,156.19,156.17,6.40327847]
[1748738598183,6.73196941,156.21,156.17,6.40327847]
[1748738598986,6.73196941,156.2,156.17,6.40327847]
[1748738603607,6.73196941,156.2,156.16,6.40368852]
[1748738605112,6.73196941,156.19,156.16,6.40368852]
[1748738605325,6.73196941,156.18,156.16,6.40368852]
[1748738608118,6.73196941,156.18,156.15,6.40409862]
[1748738610517,6.73196941,156.18,156.14,6.40450877]
[1748738611096,6.73196941,156.17,156.14,6.40450877]
[1748738613120,6.73196941,156.18,156.14,6.40450877]
[1748738613295,6.73196941,156.18,156.14,13.13647818]
[1748738615497,6.73196941,156.18,156.14,6.40450877]
[1748738620343,6.73196941,156.2,156.15,6.73196941]
[1748738620500,6.73196941,156.19,156.14,29.14775011]
[1748738621596,6.73196941,156.17,156.14,6.40450877]
[1748738622825,6.73196941,156.17,156.13,6.40491897]
[1748738623613,6.73196941,156.18,156.13,29.14918582]
[1748738625526,6.40134319,156.22,156.13,29.14918582]
[1748738625527,6.73196941,156.19,156.13,29.14918582]
[1748738625723,6.40134319,156.22,156.12,6.40517614]
[1748738625724,6.73196941,156.16,156.12,6.40517614]
[1748738625925,26.28432314,156.21,156.12,6.40517614]
[1748738625926,6.73196941,156.13,156.12,6.40517614]
[1748738626420,26.92787764,156.17,156.1,6.4060203]
[1748738626421,0.28432314,156.16,156.1,6.4060203]
[1748738626728,6.73196941,156.11,156.1,6.4060203]
[1748738627124,6.73196941,156.12,156.1,6.4060203]
[1748738627334,6.73196941,156.14,156.1,6.4060203]
[1748738627705,6.73196941,156.14,156.1,29.15336446]
[1748738630517,6.73196941,156.14,156.1,22.42139505]
[1748738631937,10.3,156.18,156.1,22.42139505]
[1748738632112,6.73196941,156.14,156.1,22.42139505]
[1748738633435,6.73196941,156.13,156.1,22.42139505]
[1748738633935,26.92787764,156.17,156.1,22.42139505]
[1748738633936,6.73196941,156.12,156.1,6.4060203]
[1748738634134,6.73196941,156.11,156.1,6.4060203]
[1748738634720,6.73196941,156.12,156.1,6.4060203]
[1748738638717,6.73196941,156.16,156.11,6.73196941]
[1748738640242,149.0,156.17,156.12,29.15062172]
[1748738640417,6.73196941,156.18,156.13,6.73196941]
[1748738640943,6.73196941,156.17,156.13,6.73196941]
[1748738642025,6.73196941,156.17,156.14,6.40450877]
[1748738642725,10.5229419,156.17,156.14,6.40450877]
[1748738644742,10.5229419,156.18,156.14,6.40450877]
[1748738645325,10.5229419,156.17,156.14,22.4157807]
[1748738645718,57.8544,156.21,156.14,22.4157807]
[1748738645917,10.5229419,156.17,156.14,22.4157807]
[1748738646447,10.5229419,156.18,156.14,22.4157807]
[1748738646740,10.5229419,156.18,156.14,32.9387226]
[1748738646944,10.5229419,156.19,156.14,32.9387226]
[1748738647624,18.4344,156.21,156.15,10.5229419]
[1748738647826,18.4344,156.21,156.16,10.5229419]
[1748738647827,20.8029419,156.21,156.16,10.5229419]
[1748738648440,10.5229419,156.21,156.16,10.5229419]
[1748738648643,10.5229419,156.21,156.17,6.40327847]
[1748738649723,149.0,156.23,156.17,6.40327847]
[1748738649926,10.5229419,156.21,156.17,6.40327847]
[1748738650935,10.5229419,156.21,156.17,22.41147466]
[1748738656083,149.0,156.23,156.17,22.41147466]
[1748738656254,10.5229419,156.21,156.17,22.41147466]
[1748738659062,10.5229419,156.21,156.17,32.93441656]
[1748738660339,10.5229419,156.21,156.16,10.5229419]
[1748738661650,10.5229419,156.21,156.17,6.40327847]
[1748738661861,10.5229419,156.21,156.17,22.41147466]
[1748738667467,6.73175069,156.21,156.17,22.41147466]
[1748738667858,6.73175069,156.22,156.17,29.14322535]
[1748738669247,6.73175069,156.22,156.19,22.4086049]
[1748738670887,1.5297,156.25,156.2,6.73175069]
[1748738671173,1.5297,156.25,156.21,6.73175069]
[1748738671373,1.5297,156.25,156.22,6.40122903]
[1748738672574,1.5297,156.25,156.22,13.13297972]
[1748738679653,1.5297,156.25,156.22,29.1360523]
[1748738689176,6.73175069,156.26,156.22,29.1360523]
[1748738690060,6.73175069,156.24,156.22,6.40122903]
[1748738691962,6.73175069,156.24,156.21,6.40163881]
[1748738692775,6.73175069,156.25,156.21,6.40163881]
[1748738693078,27.91621908,156.28,156.21,6.40163881]
[1748738693285,6.73175069,156.25,156.21,6.40163881]
[1748738697086,9.34657391,156.29,156.22,6.73175069]
[1748738697087,6.73175069,156.27,156.22,6.73175069]
[1748738697885,6.73175069,156.26,156.22,6.73175069]
[1748738698868,6.73175069,156.26,156.23,6.4008193]
[1748738700488,8.0631,156.28,156.23,6.4008193]
[1748738700702,8.0631,156.28,156.24,6.73175069]
[1748738700989,8.0631,156.28,156.23,48.40286756]
[1748738700990,6.73175069,156.29,156.25,6.73175069]
[1748738701379,6.73175069,156.29,156.24,6.73175069]
[1748738701573,6.73175069,156.28,156.24,6.73175069]
[1748738702166,6.73175069,156.27,156.23,55.13461825]
[1748738702590,6.73175069,156.27,156.23,48.40286756]
[1748738703103,6.73175069,156.26,156.23,48.40286756]
[1748738703270,6.73175069,156.26,156.23,6.4008193]
[1748738708390,6.73175069,156.26,156.22,6.40122903]
[1748738713323,6.73175069,156.26,156.22,22.40430161]
[1748738715749,8.1334,156.27,156.22,29.1360523]
[1748738715931,6.73175069,156.28,156.23,6.73175069]
[1748738716927,6.73175069,156.28,156.24,6.40040962]
[1748738717327,6.73175069,156.28,156.24,22.40143368]
[1748738717735,6.73175069,156.27,156.24,22.40143368]
[1748738719147,8.27556157,156.31,156.24,16.00102406]
[1748738719336,8.27556157,156.31,156.24,22.73277475]
[1748738719337,6.73175069,156.29,156.24,22.73277475]
[1748738719842,6.73175069,156.29,156.24,48.73277475]
[1748738721539,6.73175069,156.29,156.24,55.13318437]
[1748738723435,1.5429,156.31,156.24,55.13318437]
[1748738723733,6.73175069,156.29,156.24,55.13318437]
[1748738724239,1.5429,156.31,156.24,55.13318437]
[1748738724446,6.73175069,156.29,156.24,55.13318437]
[1748738725942,6.73175069,156.29,156.24,48.40143368]
[1748738726141,6.73175069,156.27,156.24,48.40143368]
[1748738726738,6.73175069,156.26,156.24,48.40143368]
[1748738727161,6.73175069,156.26,156.24,22.40143368]
[1748738727331,28.46990276,156.31,156.24,6.40040962]
[1748738727332,6.73175069,156.25,156.24,6.40040962]
[1748738727736,6.73175069,156.25,156.22,6.40122903]
[1748738729934,6.73175069,156.26,156.22,29.1360523]
[1748738730443,6.73175069,156.29,156.25,6.73175069]
[1748738731242,6.73175069,156.33,156.28,6.73175069]
[1748738731462,196.05988396,156.38,156.29,6.73175069]
[1748738731463,6.73175069,156.34,156.29,6.73175069]
[1748738732045,6.73175069,156.34,156.3,6.39795265]
[1748738732352,6.73175069,156.34,156.3,29.12458497]
[1748738733069,1.6299,156.36,156.31,6.73175069]
[1748738733070,8.36165069,156.36,156.31,6.73175069]
[1748738734148,8.36165069,156.36,156.32,6.39713408]
[1748738734651,12.12826867,156.36,156.32,6.39713408]
[1748738735054,10.49836867,156.35,156.32,6.39713408]
[1748738739773,26.52774285,156.38,156.32,32.39713408]
[1748738739978,10.49836867,156.36,156.32,42.89550275]
[1748738740187,10.49836867,156.36,156.32,32.39713408]
[1748738740473,10.49836867,156.36,156.32,6.39713408]
[1748738740775,0.14216157,156.39,156.32,6.39713408]
[1748738740957,10.49836867,156.36,156.32,6.39713408]
[1748738743076,12.07596867,156.36,156.32,6.39713408]
[1748738743859,18.66566867,156.36,156.32,6.39713408]
[1748738745167,18.66566867,156.36,156.32,16.89550275]
[1748738746457,8.1673,156.36,156.33,10.49836867]
[1748738747579,149.0,156.41,156.34,16.89468439]
[1748738747760,8.0289,156.4,156.37,26.0]
[1748738747969,8.0289,156.4,156.38,10.49836867]
[1748738748152,8.0289,156.4,156.37,36.49836867]
[1748738748354,18.52726867,156.4,156.37,26.0]
[1748738748879,12.10566867,156.4,156.37,26.0]